Cogmind - Beta 16 @@@ ROGUE MODE // 2025.12.26 @ 07:05:07 Player: mm79 Result: Destroyed by D-53 Grenadier with Mini Grenade Launcher Performance ------------- Evolutions (0) 0 Regions Visited (2) 400 Robots Destroyed (15) 75 Value Destroyed (451) 451 Prototype IDs (2) 40 Alien Tech Used (0) 0 Bonus (0) 0 TOTAL SCORE: 966 Bonus ------- None Cogmind --------- Core Integrity 0/250 Matter 290/300 Energy 84/100 System Corruption 0% Temperature Cool (0) Movement Core (450) Ox8 Location -10/Mines Parts ------- > --- POWER (1) -------- (None) > --- PROPULSION (2) --- (None) > --- UTILITY (2) ------ Heat Sink Large Storage Unit > --- WEAPON (2) ------- Medium Laser Maul > --- INVENTORY (15) --- Hover Unit Improved Hover Unit Improved Hover Unit Improved Hover Unit Improved Hover Unit Phase Shifter Hacking Suite Light Assault Rifle Grenade Launcher Mining Laser Plasma Cutter Peak State ------------ > --- POWER ------------ Ion Engine > --- PROPULSION ------- Wheel Wheel > --- UTILITY ---------- Large Storage Unit Seismic Detector > --- WEAPON ----------- Medium Laser Medium Laser > --- INVENTORY -------- Light Ion Engine Light Ion Engine Wheel Wheel Wheel Compact Wheel Improved Hover Unit Improved Hover Unit Improved Hover Unit Improved Hover Unit Medium Laser Medium Laser Small Laser Mining Laser Maul [Rating: 9] Favorites ----------- Power Ion Engine Engine Ion Engine Propulsion Wheel Wheel Wheel Utility Large Storage Unit Device Seismic Detector Storage Large Storage Unit Weapon Medium Laser Energy Gun Medium Laser Launcher Grenade Launcher Impact Weapon Maul Build | -11 -10 -10 ------- Run | Yrd Mat Min Slots Evolved . | . . . Power . | . . . Propulsion . | . . . Utility . | . . . Weapon . | . . . Parts Attached 18 | 7 3 8 Power 3 | 1 . 2 Engine 3 | 1 . 2 Core . | . . . Reactor . | . . . Propulsion 5 | 2 1 2 Treads . | . . . Leg . | . . . Wheel 5 | 2 1 2 Hover . | . . . Flight . | . . . Utility 4 | 2 1 1 Device 2 | 1 . 1 Storage 2 | 1 1 . Processor . | . . . Hackware . | . . . Protection . | . . . Artifact . | . . . Weapon 6 | 2 1 3 Energy Gun 4 | 2 1 1 Energy Cannon . | . . . Ballistic Gun . | . . . Ballistic Cannon . | . . . Launcher 1 | . . 1 Special Weapon . | . . . Impact Weapon 1 | . . 1 Slashing Weapon . | . . . Piercing Weapon . | . . . Special Melee Weapon . | . . . Unidentified Prototypes . | . . . Parts Lost 11 | . 1 10 Power 3 | . . 3 Propulsion 4 | . . 4 Utility 1 | . . 1 Weapon 3 | . 1 2 Highest Loss Streak 5 | . 1 5 To Critical Strikes . | . . . Average Backups 12 | 1 13 14 Power 1 | . 1 . Propulsion 5 | . 5 6 Utility . | . . 1 Weapon 4 | 1 4 4 Tool/Special . | . . . Unused Backups 16 | . 6 10 Power 2 | . 2 . Propulsion 6 | . 1 5 Utility 2 | . . 2 Weapon 4 | . 2 2 Tool/Special 2 | . 1 1 Average Slot Usage (%) 97 | . 99 92 Engine 13 | . 14 11 Wheel 27 | . 28 24 Device 13 | . 14 13 Storage 14 | . 14 14 Energy Gun 27 | . 27 25 Peak Build Rating 9 | 7 9 9 Average Rating 8 | 5 8 8 On Entrance 5 | . 7 9 Avg Prop Armor Cover (%) . | . . . Naked Turns . | . . . Heaviest Build 31 | 15 30 31 Greatest Support 20 | 20 20 20 Greatest Overweight (x) 2 | . 1 2 Average Overweight (x) . | . . 1 Largest Inventory Capacity 15 | 8 15 15 Average Capacity 14 | 7 14 15 Most Carried 15 | 4 15 15 Average Carried 12 | 1 13 14 Final Capacity 15 | 8 15 15 Final Carried 15 | 4 15 11 Class Distribution -------------------- 100% | Mutant Dominant Class ---------------- Mutant | -10/Materials Mutant | -10/Mines Resources | -11 -10 -10 ----------- Run | Yrd Mat Min Matter Collected 431 | 204 106 121 Remotely . | . . . Salvage Created 633 | 28 454 151 Parts 35 | 4 28 3 Haulers Intercepted 1 | . 1 . Recyclers Shooed 1 | . 1 . Parts Field Recycled . | . . . Retrieved Matter . | . . . Parts Self-Destructed . | . . . Prevented . | . . . Parts Restored . | . . . Kills | -11 -10 -10 ------- Run | Yrd Mat Min Combat Hostiles Destroyed 17 | . 9 8 Guns 12 | . 8 4 AOE 4 | . . 4 Classes Destroyed 5 | 1 3 1 Tunneler 1 | 1 . . Hauler 1 | . 1 . Operator 2 | . 2 . Grunt 11 | . 9 2 Assembled 6 | . . 6 Best Kill Streak 6 | 1 4 6 Combat Bots Only 6 | . 3 6 Max Kills in Single Turn 2 | 1 1 2 Gunslinging . | . . . Exploded 2 | . . 2 Melee . | . . . Uniques/NPCs Destroyed . | . . . Combat | -11 -10 -10 -------- Run | Yrd Mat Min Hostile Shots Fired 67 | . 22 45 Missed 15 | . 4 11 Hits 52 | . 18 34 Melee 2 | . . 2 Projectile 50 | . 18 32 AOE 6 | . . 6 Damage Taken 896 | . 237 659 Core 263 | . 90 173 Absorbed by Shields . | . . . Core Remaining (%) 100 | 100 . . Volleys Fired 61 | 5 32 24 Largest 2 | 2 2 2 Hottest 100 | 100 100 100 Shots Fired 112 | 10 64 38 Gun 107 | 10 64 33 Cannon . | . . . Launcher 5 | . . 5 Special . | . . . Kinetic . | . . . Thermal 107 | 10 64 33 Explosive 5 | . . 5 Electromagnetic . | . . . Robot Hit Streak 11 | 3 11 9 Robot Miss Streak 5 | 5 2 2 Penetration Max . | . . . Secondary Targets . | . . . Shots Hit Robots 74 | 5 48 21 Core Hits 42 | 1 25 16 Critical Kills . | . . . Critical Parts Destroyed . | . . . Critical Strikes 11 | . 8 3 Burn 11 | . 8 3 Melee Attacks . | . . . Impact . | . . . Slashing . | . . . Piercing . | . . . Sneak Attacks . | . . . Combat Hostiles . | . . . Follow-up Attacks . | . . . Damage Inflicted 1194 | 75 584 535 Guns 949 | 75 584 290 Cannons . | . . . Explosions 245 | . . 245 Melee . | . . . Ramming . | . . . Kinetic . | . . . Thermal 949 | 75 584 290 Explosive 245 | . . 245 Electromagnetic . | . . . Impact . | . . . Slashing . | . . . Piercing . | . . . Highest Corruption . | . . . Average Corruption . | . . . Corruption Purged . | . . . Corruption Blocked . | . . . Overload Shots . | . . . Overflow Damage . | . . . Projectiles . | . . . Explosions . | . . . Melee . | . . . Knockbacks . | . . . Impact . | . . . Kinetic . | . . . Secondary . | . . . Self-Inflicted Damage . | . . . Shots . | . . . Rammed . | . . . Targets Rammed . | . . . Kicked . | . . . Crushed . | . . . Highest Temperature 329 | 117 305 329 Average Temperature 94 | 54 85 132 Received Heat Transfer 265 | . 120 145 Effects 2 | . 1 1 Energy Bleed 1 | . 1 . Interference 1 | . . 1 Siege Activations . | . . . Martial Activations . | . . . Shielding Activations . | . . . Robots Disrupted . | . . . Combat Hostiles . | . . . Robots Corrupted . | . . . Combat Hostiles . | . . . Parts Fried . | . . . Impact Corruptions . | . . . Robots Melted 1 | . 1 . Combat Hostiles 1 | . 1 . Parts Melted 6 | . 4 2 Heat Transferred 3626 | 222 2331 1073 Parts Sabotaged . | . . . Parts Stolen . | . . . Parts Stripped . | . . . Power Chain Reactions . | . . . Alert | -11 -10 -10 ------- Run | Yrd Mat Min Maximum Alert Level . | . . . Low Security (%) 100 | 100 100 100 Level 1 . | . . . Level 2 . | . . . Level 3 . | . . . Level 4 . | . . . Level 5 . | . . . High Security . | . . . Max Security . | . . . Peak Influence 85 | 5 85 30 Initial 9 | . . 9 Average 22 | . 29 8 Influence Increases 361 | 5 266 90 Destroy 0b10 Robot/C 220 | . 180 40 Destroy 0b10 Robot/NC 20 | 5 15 . Destroy Leader 52 | . 42 10 Successful Hack 14 | . 14 . Disable Machine 15 | . . 15 Destroy Structure 10 | . . 10 Partial Spotted 15 | . 15 . Lose Combat Pursuer 15 | . . 15 Influence Decreases 361 | 5 241 115 Entered New Map 16 | . . 16 Time Decay 293 | 5 231 57 Lost Part 52 | . 10 42 Squads Dispatched 3 | . 3 . Investigation 1 | . 1 . Extermination . | . . . Reinforcement 2 | . 2 . Assault . | . . . Garrison . | . . . Intercept . | . . . Searches Triggered . | . . . Construction Impeded . | . . . Haulers Reinforced . | . . . Active Scanning Responses . | . . . Cargo Convoy Interrupts . | . . . Stealth | -11 -10 -10 --------- Run | Yrd Mat Min Distress Signals 2 | . 1 1 Communications Jammed . | . . . Distress Signals . | . . . Times Spotted 29 | . 16 13 Peak Tracking Total 5 | . 5 5 Tactical Retreats 2 | . . 2 Traps | -11 -10 -10 ------- Run | Yrd Mat Min Traps Triggered 3 | . 3 . Indirectly . | . . . Trap Hack Attempts . | . . . Triggered . | . . . Disarmed . | . . . Reprogrammed . | . . . Reused . | . . . Traps Extracted . | . . . Installed . | . . . Triggered . | . . . Machines | -11 -10 -10 ---------- Run | Yrd Mat Min Machines Disabled 1 | . . 1 Max in Single Turn 1 | . . 1 Machines Repaired . | . . . Machines Dismantled . | . . . Machines Sabotaged . | . . . Overloaded Fab Kills . | . . . Hacking | -11 -10 -10 --------- Run | Yrd Mat Min Machines Accessed 5 | . 5 . Terminals 3 | . 3 . Fabricators . | . . . Repair Stations . | . . . Recycling Units 2 | . 2 . Scanalyzers . | . . . Garrison Access . | . . . Total Hacks 15 | . 15 . Successful 10 | . 10 . Failed 5 | . 5 . Catastrophic . | . . . Database Lockouts . | . . . Manual 9 | . 9 . Terminals 9 | . 9 . Fabricators . | . . . Repair Stations . | . . . Recycling Units 6 | . 6 . Scanalyzers . | . . . Garrison Access . | . . . Terminal Hacks 4 | . 4 . Robot Analysis 1 | . 1 . Prototype ID Bank 1 | . 1 . Terminal Index 1 | . 1 . Locate Traps 1 | . 1 . Fabricator Hacks . | . . . Repair Station Hacks . | . . . Recycling Unit Hacks 2 | . 2 . Report Inventory 2 | . 2 . Scanalyzer . | . . . Garrison Access Hacks . | . . . Unauthorized Hacks 4 | . 4 . Terminals 2 | . 2 . Assimilate 1 | . 1 . Botnet 1 | . 1 . Fabricators . | . . . Repair Stations . | . . . Recycling Units 2 | . 2 . Reject 2 | . 2 . Scanalyzers . | . . . Garrison Access . | . . . Data Cores Recovered 1 | . 1 . Used . | . . . Hacking Detections 5 | . 5 . Full Trace Events . | . . . Feedback Events . | . . . Feedback Blocked . | . . . Robot Schematics Acquired . | . . . Robots Built . | . . . Authchips . | . . . Time . | . . . Total Robot Build Rating . | . . . Part Schematics Acquired . | . . . Parts Built . | . . . Authchips . | . . . Time . | . . . Total Part Build Rating . | . . . Part Studies Acquired . | . . . Parts Repaired . | . . . Time . | . . . Parts Recycled . | . . . Recycled Matter . | . . . Retrieved Matter . | . . . Retrieved Components . | . . . Parts Scanalyzed . | . . . Part Schematics Acquired . | . . . Parts Damaged . | . . . Bothacking | -11 -10 -10 ------------ Run | Yrd Mat Min Used RIF Installer . | . . . Robots Hacked . | . . . Non-combat . | . . . Combat . | . . . Robot Hacks Applied . | . . . Relay Couplers Released . | . . . Fabnet Peak Effective % . | . . . Robots Rewired . | . . . Allies Hacked . | . . . Hacks Repelled . | . . . Allies | -11 -10 -10 -------- Run | Yrd Mat Min Total Allies . | . . . Largest Group . | . . . Highest-Rated Group . | . . . Highest-Rated Ally . | . . . Total Orders . | . . . Ally Attacks . | . . . Total Damage . | . . . Kills . | . . . Allies Corrupted . | . . . Allies Melted . | . . . Intel | -11 -10 -10 ------- Run | Yrd Mat Min Active Infowar (turns) 644 | 9 617 18 Seismic 644 | 9 617 18 Robot Analysis Total 1 | . 1 . Derelict Logs Recovered . | . . . Drone Launches . | . . . Drone Recoveries . | . . . Exploration | -11 -10 -10 ------------- Run | Yrd Mat Min Turns Passed 889 | 72 617 200 Spaces Moved 574 | 45 406 123 Core 1 | 1 . . Treads . | . . . Legs . | . . . Wheels 573 | 44 406 123 Hover . | . . . Flight . | . . . Fastest Speed 50 | 50 80 95 Average Speed 93 | 79 94 95 Slowest Speed 110 | 80 95 110 Overloaded Moves . | . . . Propulsion Burnouts . | . . . Robots Hopped . | . . . Potential Cave-ins . | . . . Cave-ins Triggered . | . . . Exploration Rate (%) 24 | 4 49 20 Regions Visited 2 Branch Regions 1 Pre-discovered Areas . | . . . Known Exits Taken . | . . . Unknown Exits Taken 2 | 1 1 . Scrap Searched 1 | . . 1 Spaces Dug . | . . . Terrain Destroyed 10 | . . 10 Melee . | . . . Projectile . | . . . AOE 10 | . . 10 Terrain Rammed . | . . . Walls Destroyed . | . . . Machines Disabled . | . . . Actions | -11 -10 -10 --------- Run | Yrd Mat Min Total 809 | 67 577 165 Wait 120 | 7 109 4 Move 572 | 44 405 123 Hop . | . . . Pick Up 26 | 4 19 3 Fast Attach 8 | 7 1 . Attach 8 | . 1 7 Detach . | . . . Swap 6 | . 2 4 Drop 8 | . 8 . Fire 61 | 5 32 24 Melee . | . . . Ram . | . . . Kick . | . . . Crush . | . . . Escape Stasis . | . . . Rewire . | . . . Trap . | . . . Miscellaneous . | . . . Route ------- -11/Scrapyard -10/Materials (discovered 2 exits: [*Mat] / [*Min]) -10/Mines History --------- Turn | Location | Event 10 | -11/Scrapyard | Discovered new exit (range 16) 73 | -11/Scrapyard | Entered Materials 239 | -10/Materials | Discovered new exit (range 11) 304 | -10/Materials | Build established: Mutant 504 | -10/Materials | Discovered new exit (range 14) 690 | -10/Materials | Entered Mines 761 | -10/Mines | Assembled infested the area 766 | -10/Mines | Assisted by a Guerilla fighting off Assembled 798 | -10/Mines | Core integrity fell below 50% 888 | -10/Mines | Core integrity fell below 20% 890 | -10/Mines | Destroyed by D-53 Grenadier with Mini Grenade Launcher Last Messages --------------- 00806_ Laser Drill disabled. 00812_ as-48574 destroyed. 00819_ as-12372 suffers critical hit (Burn). 00819_ as-12372 destroyed. 00824_ Acquired 20 matter. 00837_ as-44450 destroyed. 00837_ as-28013 destroyed. 00841_ Wheel destroyed. 00844_ as-40683 suffers critical hit (Burn). 00844_ as-40683 destroyed. 00848_ Acquired 18 matter. 00850_ The unstable cave ceiling collapses. 00850_ Acquired 63 matter. 00852_ Acquired Phase Shifter. 00877_ Wheel destroyed. 00877_ Med. Laser destroyed. 00886_ D-53 Grenadier suffers critical hit (Burn). 00887_ Med. Laser destroyed. 00888_ Wheel destroyed. 00888_ Ion Engine destroyed. Map ----- +----------------------------------------------------+ | ?????# ######?# #??????????? ????????? | | ?????## #??????# ?????????? ???????? | | ??????# ##?????####?????#? ???????? | | ??????# ####?????????? # # ??????? | | ??????# #????????? ???????? | | ??????# ###???### # #??????? | | ?????## #### #???????? | | ?????# ## #????????? | | ????## ! ! #?????????? | | ????# "" ## #?????????? | | ????# ##?## ###?????????? | | ????# ##????? ###???????????? | | ????## ##???????##?????????????? | | ?????### # #???????????????????????? | | ???????# ## ##???????????????????????? | | ???????# ######????????????????????????? | | ???????# ####??????????????????????????? | | ???????# #??????????????????????????? | | ???????##### #??????????????????????????? | | ???????????# #??????????????????????????? | | ???????????# ###????????????????????????? | | ???????????# # #####???????????????????? | | ???????????# #???????????????????? | | ?????????### ##??????????????????? | | ????????## #??????????????????? | | ????????# d @ #???????????????????? | | ????????# d #???????????????????? | | ????????## #??????????????????? | | ?????????# ##??????????????????? | | ?????##### # ##???????????????????? | | ????## ##????????????????????? | | ????# #????????????????????? | | ????# % #????????????????????? | | ????# =% #????????????????????? | | ???# = ##????????????????????? | | ???# ## ##?????????????????????? | | ???# #### #??????????????????????? | | ???# ##??### #??????????????????????? | | ???## ##?????? #??????????????????????? | | ????###???????? #??????????????????????? | | ??????????????? #??????????????????????? | | ??????????????? #??????????????????????? | | ???????????????? #??????????????????????? | | ???????????????? #??????????????????????? | | ????????????????????????????????????????? | | ????????????????????????????????????????? | | ????????????????????????????????????????? | | ????????????????????????????????????????? | | ????????????????????????????????????????? | | ????????????????????????????????????????? | +----------------------------------------------------+ Best States ------------- Heat Dissipation 35 Energy Generation 10 Energy Capacity 250 Matter Stores 300 Matter Capacity 300 Sight Range 16 Terrain Scan Density 10 Evasion (%) 44 Item Schematics ----------------- None Robot Schematics ------------------ None Fabricated ------------ Nothing Repaired ---------- Nothing Studied --------- None Alien Tech Used ----------------- None Achievements -------------- None Challenges ------------ None Game ------ Seed OvertunedNuclearProcessor Manual? 0 Play Time 00:15:10 Cumulative 15.9 hours Start 2025.12.26 @ 06:34:21 End 2025.12.26 @ 07:05:07 Sessions 1 Manual Loads 0 Difficulty Rogue Special Mode None Game No. 13 Rogue 13 Adventurer 0 Explorer 0 Win Type - Total 0 Types 0/0/0/0/0/0/0/0/0/0 Lore% 10 Gallery% 26 Achievement% 24 Wizard Run 0 Options --------- Layout 1 ASCII 0 Keyboard 0 Movement Mouse Keybinds 0 Fullscreen 1 Font 20/SmallcapsGlow Map View 54x42 Zoom Use 0% Tactical HUD 1 Map Filters NONE Filters NONE Steam 0 RUN: 31e514c1-8286-4f3b-ad76-5fea732a69bc